fUSD/lending_fUSD_20251120
["ID","MTS","AMOUNT","RATE_DAILY","PERIOD"]
[394468616,1763611839023,-161.60192736,0.00017973,2]
[394468617,1763611839032,-316.17285237,0.00017973,2]
[394468618,1763611839042,-500.0,0.00017973,2]
[394468619,1763611839052,-500.0,0.00017973,2]
[394468620,1763611839062,-297.20176291,0.00017973,2]
[394468621,1763611839071,-500.62908268,0.00017973,2]
[394468622,1763611839081,-500.0,0.00017973,2]
[394468623,1763611839091,-501.27362339,0.00017973,2]
[394468624,1763611839101,-500.90554177,0.00017973,2]
[394468625,1763611839111,-501.23436494,0.00017973,2]
[394468626,1763611839123,-181.63155506,0.00017973,2]
[394468627,1763611839133,-500.0,0.00017973,2]
[394468628,1763611839144,-501.23748106,0.00017973,2]
[394468629,1763611839155,-501.20084487,0.00017973,2]
[394468630,1763611839166,-500.0,0.00017973,2]
[394468631,1763611839178,-500.0,0.00017973,2]
[394468632,1763611839188,-500.0,0.00017973,2]
[394468633,1763611839198,-500.0,0.00017973,2]
[394468634,1763611839208,-503.86976296,0.00017973,2]
[394468635,1763611839218,-500.0,0.00017973,2]
[394468636,1763611839228,-572.12173873,0.00017973,2]
[394468637,1763611839237,-500.0,0.00017973,2]
[394468638,1763611839247,-500.60845142,0.00017973,2]
[394468639,1763611839256,-500.0,0.00017973,2]
[394468640,1763611839266,-500.0,0.00017973,2]
[394468641,1763611839276,-500.0,0.00017973,2]
[394468642,1763611839285,-500.0,0.00017973,2]
[394468643,1763611839295,-500.0,0.00017973,2]
[394468644,1763611839306,-500.0,0.00017973,2]
[394468645,1763611839316,-500.0,0.00017973,2]
[394468646,1763611839325,-500.0,0.00017989,2]
[394468647,1763611839335,-1820.68505313,0.0001799,2]
[394468648,1763611839345,-1820.68505313,0.0001799,2]
[394468649,1763611839355,-500.0,0.00017997,2]
[394468650,1763611839364,-811.7,0.00017997,2]
[394468651,1763611839374,-500.0,0.00017997,2]
[394468652,1763611839384,-500.0,0.00017997,2]
[394468653,1763611839393,-287438.9497103,0.00017998,2]
[394468654,1763611839403,-7698.0278916,0.00017998,2]
[394468655,1763611839413,-1304.3837587,0.00017998,2]
[394468656,1763611839423,-35774.8549419,0.00017998,2]
[394468657,1763611839433,-15795.9623433,0.00017998,2]
[394468658,1763611839443,-1027.3708,0.00017999,2]
[394468659,1763611839452,-630.79318049,0.00017999,2]
[394468660,1763611839461,-811.7,0.00017999,2]
[394468661,1763611839470,-811.7,0.00017999,2]
[394468662,1763611839480,-811.7,0.00017999,2]
[394468663,1763611839490,-811.7,0.00017999,2]
[394468664,1763611839499,-811.7,0.00017999,2]
[394468665,1763611839510,-811.7,0.00017999,2]
[394468666,1763611839519,-811.7,0.00017999,2]
[394468667,1763611839529,-811.7,0.00017999,2]
[394468668,1763611839538,-811.7,0.00017999,2]
[394468669,1763611839547,-811.7,0.00017999,2]
[394468670,1763611839557,-811.7,0.00017999,2]
[394468671,1763611839567,-811.7,0.00017999,2]
[394468672,1763611839577,-811.7,0.00017999,2]
[394468673,1763611839586,-811.7,0.00017999,2]
[394468674,1763611839595,-811.7,0.00017999,2]
[394468675,1763611839604,-811.7,0.00017999,2]
[394468676,1763611839613,-811.7,0.00017999,2]
[394468677,1763611839623,-811.7,0.00017999,2]
[394468678,1763611839632,-811.91299022,0.00017999,2]
[394468679,1763611839641,-351.02217685,0.00017999,2]
[394468680,1763611839651,-300.0,0.00017999,2]
[394468681,1763611839659,-500.0,0.00017999,2]
[394468682,1763611839669,-500.0,0.00017999,2]
[394468683,1763611839679,-639.05819945,0.00017999,2]
[394468684,1763611839688,-630.01716056,0.00017999,2]
[394468685,1763611839698,-2989763.11967881,0.00018,2]
[394468687,1763611839816,-1605.0,0.00017595,2]
[394468689,1763611839824,-2954.51605032,0.00018,2]
[394468690,1763611839835,-1340.44151226,0.00018,2]
[394468691,1763611839846,-899.00064415,0.00018,2]
[394468692,1763611839858,-1173.22049338,0.00018,2]
[394468693,1763611839873,-2020.03981873,0.00018,2]
[394468694,1763611839889,-1447.70925639,0.00018,2]
[394468695,1763611839900,-1690.66002,0.00018,2]
[394468696,1763611839914,-918.085566,0.00018,2]
[394468697,1763611839927,-39051.68046005,0.00018,2]
[394468698,1763611839938,-1088.94000001,0.00018,2]
[394468706,1763611844219,-13334.6791496,0.00018,2]
[394468711,1763611846021,-2422.75459392,0.00018,2]
[394468812,1763612052071,400.0,0.000169,6]
[394468813,1763612054161,900.0,0.000172,6]
[394468814,1763612056252,1400.0,0.000173,6]
[394468815,1763612058345,1900.0,0.000174,6]
[394468816,1763612083202,445.12,0.00013699,2]
[394468838,1763612345429,500.0,0.00042066,30]
[394468839,1763612346041,500.0,0.00042066,30]
[394468840,1763612346678,500.0,0.00042066,30]
[394468841,1763612347294,500.0,0.00042066,30]
[394468842,1763612348024,500.0,0.00042066,30]
[394468843,1763612348508,500.0,0.00042066,30]
[394468845,1763612349127,500.0,0.00042066,30]
[394468846,1763612349751,500.0,0.00042066,30]
[394468847,1763612350400,500.0,0.00042066,30]
[394468848,1763612351019,500.0,0.00042066,30]
[394468849,1763612356681,155.0,0.00032876,120]
[394468861,1763612430661,-194.14,0.00016438,2]
[394468862,1763612430680,-3218.05,0.00016438,2]
[394468863,1763612430700,-250.0,0.0001654,2]
[394468864,1763612430719,-250.0,0.00016572,2]
[394468865,1763612430739,-300.0,0.00016572,2]
[394468866,1763612430759,-300.0,0.00016705,2]
[394468867,1763612430778,-1200.0,0.00016904,2]
[394468868,1763612430798,-300.0,0.00016904,2]
[394468869,1763612430818,-1637.81,0.00016905,2]
[394468995,1763612688051,166.66,0.00015419,2]
[394468996,1763612688267,166.66,0.00015744,2]
[394468997,1763612688483,166.66,0.00016068,2]
[394468998,1763612692832,200.0,0.00016159,2]
[394469007,1763612760169,2906.18798361,8e-05,2]
[394469028,1763612841065,400.0,0.000169,6]
[394469029,1763612843161,800.0,0.000171,6]
[394469030,1763612845287,1200.0,0.000172,6]
[394469031,1763612847335,1600.0,0.000173,6]
[394469032,1763612849439,2100.0,0.000174,6]
[394469040,1763612975341,1171.05,0.00015921,2]
[394469041,1763613020638,2751.0,0.000159,2]
[394469042,1763613031548,-498.0,0.00016255,2]
[394469044,1763613031559,-250.0,0.00016324,2]
[394469046,1763613031569,-166.66,0.00016393,2]
[394469048,1763613031581,-166.66,0.00016448,2]
[394469051,1763613031591,-168.0,0.0001657,2]
[394469053,1763613031600,-171.249,0.00016645,2]
[394469055,1763613031611,-1295.287,0.00016645,2]
[394469058,1763613031624,-168.0,0.0001669,2]
[394469060,1763613031633,-168.0,0.00016699,2]
[394469061,1763613031642,-166.66,0.00016717,2]
[394469062,1763613031651,-498.0,0.00016725,2]
[394469063,1763613031661,-498.0,0.00016731,2]
[394469064,1763613031671,-168.0,0.00016732,2]
[394469065,1763613031680,-250.65711257,0.00016733,2]
[394469066,1763613031689,-168.0,0.00016788,2]
[394469067,1763613031698,-168.0,0.00016813,2]
[394469068,1763613031708,-130018.90567884,0.00016833,2]
[394469069,1763613031719,-31939.23793642,0.00016833,2]
[394469070,1763613031735,-325.76039919,0.00016833,2]
[394469071,1763613031745,-963.35442876,0.00016833,2]
[394469072,1763613031835,-10093.00947917,0.00016833,2]
[394469075,1763613037728,-586659.73207762,0.00016833,2]
[394469076,1763613037737,-168.0,0.00016833,2]
[394469077,1763613037747,-168.0,0.0001687,2]
[394469078,1763613037756,-1200.0,0.00016882,2]
[394469079,1763613037765,-749.0,0.00016883,2]
[394469080,1763613037775,-300.0,0.00016883,2]
[394469081,1763613037786,-300.0,0.00016883,2]
[394469082,1763613037796,-550.0,0.00016883,2]
[394469083,1763613037806,-1512.8865,0.00016884,2]
[394469084,1763613037815,-30555.0372,0.00016884,2]
[394469085,1763613037825,-171.68977968,0.00016897,2]
[394469086,1763613037834,-250.65711256,0.000169,2]
[394469087,1763613037843,-9939.06330088,0.000169,2]
[394469088,1763613037855,-657.62853525,0.00016925,2]
[394469089,1763613037865,-6266.27434353,0.00016933,2]
[394469090,1763613037874,-500.0,0.00016973,2]
[394469091,1763613037884,-502.32466866,0.00016973,2]
[394469092,1763613037894,-495.51149175,0.00016973,2]
[394469093,1763613037903,-500.0,0.00016973,2]
[394469094,1763613037912,-409.97796895,0.00016973,2]
[394469095,1763613037921,-500.0,0.00016973,2]
[394469097,1763613037930,-501.53350493,0.00016973,2]
[394469098,1763613037939,-500.0,0.00016973,2]
[394469099,1763613037948,-403.59576612,0.00016973,2]
[394469100,1763613037957,-500.0,0.00016973,2]
[394469101,1763613037968,-153.21806903,0.00016973,2]
[394469102,1763613037977,-168.0,0.00016977,2]
[394469103,1763613037987,-245.11,0.0001698,2]
[394469104,1763613037996,-155.53913115,0.00016981,2]
[394469105,1763613038006,-500.0,0.00016984,2]
[394469106,1763613038015,-500.0,0.00016984,2]
[394469107,1763613038024,-500.0,0.00016984,2]
[394469108,1763613038033,-500.0,0.00016984,2]
[394469110,1763613038043,-500.0,0.00016984,2]
[394469111,1763613038056,-257.73915746,0.00016984,2]
[394469112,1763613038065,-811.7,0.00016984,2]
[394469113,1763613038075,-811.7,0.00016984,2]
[394469114,1763613038086,-811.7,0.00016984,2]
[394469115,1763613038095,-155.0,0.00016984,2]
[394469116,1763613038104,-604.30481114,0.00016984,2]
[394469117,1763613038114,-500.0,0.00016984,2]
[394469118,1763613038123,-500.0,0.00016984,2]
[394469119,1763613038132,-500.0,0.00016984,2]
[394469120,1763613038141,-500.0,0.00016984,2]
[394469121,1763613038151,-500.0,0.00016984,2]
[394469122,1763613038164,-500.0,0.00016984,2]
[394469123,1763613038181,-500.0,0.00016984,2]
[394469124,1763613038190,-500.0,0.00016984,2]
[394469125,1763613038200,-500.0,0.00016984,2]
[394469126,1763613038210,-1000.0,0.00016984,2]
[394469127,1763613038221,-1104.991,0.00016984,2]
[394469128,1763613038230,-60056.1244269,0.00017,2]
[394469129,1763613038239,-218.67400939,0.00017007,2]
[394469130,1763613038249,-9939.06330088,0.00017011,2]
[394469131,1763613038261,-657.62853522,0.00017033,2]
[394469132,1763613038270,-168.0,0.00017035,2]
[394469133,1763613038279,-6266.27434345,0.0001704,2]
[394469134,1763613038289,-166.66,0.00017042,2]
[394469135,1763613038299,-159.43,0.00017064,2]
[394469136,1763613038309,-250.65711256,0.00017066,2]
[394469137,1763613038318,-1460.36,0.00017083,2]
[394469138,1763613038328,-500.0,0.00017083,2]
[394469139,1763613038338,-500.0,0.00017083,2]
[394469140,1763613038348,-500.0,0.00017083,2]
[394469141,1763613038358,-315.03060009,0.00017083,2]
[394469142,1763613038367,-500.0,0.00017083,2]
[394469143,1763613038377,-500.0,0.00017083,2]
[394469144,1763613038387,-150.78430682,0.00017083,2]
[394469145,1763613038396,-500.0,0.00017083,2]
[394469146,1763613038406,-500.0,0.00017083,2]
[394469147,1763613038416,-516.58455535,0.00017083,2]
[394469148,1763613038426,-500.0,0.00017083,2]
[394469149,1763613038436,-500.0,0.00017083,2]
[394469150,1763613038445,-500.0,0.00017083,2]
[394469151,1763613038455,-500.0,0.00017083,2]
[394469152,1763613038465,-500.0,0.00017083,2]
[394469153,1763613038476,-500.0,0.00017083,2]
[394469154,1763613038486,-500.0,0.00017083,2]
[394469155,1763613038495,-500.0,0.00017083,2]
[394469156,1763613038505,-500.0,0.00017083,2]
[394469157,1763613038514,-500.0,0.00017083,2]
[394469158,1763613038524,-500.0,0.00017083,2]
[394469159,1763613038538,-500.0,0.00017083,2]
[394469160,1763613038548,-219.93596713,0.00017083,2]
[394469161,1763613038558,-500.0,0.00017083,2]
[394469162,1763613038568,-500.0,0.00017083,2]
[394469163,1763613038578,-500.0,0.00017083,2]
[394469164,1763613038588,-500.0,0.00017083,2]
[394469165,1763613038598,-500.0,0.00017083,2]
[394469166,1763613038610,-500.0,0.00017083,2]
[394469167,1763613038619,-500.0,0.00017083,2]
[394469168,1763613038629,-9939.06330088,0.00017122,2]
[394469169,1763613038638,-166.66,0.00017127,2]
[394469170,1763613038648,-657.62853522,0.00017142,2]
[394469171,1763613038667,-184.41,0.00017142,2]
[394469172,1763613038677,-6266.27434345,0.00017148,2]
[394469173,1763613038687,-9939.06330088,0.00017233,2]
[394469174,1763613038696,-657.62853522,0.0001725,2]
[394469175,1763613038706,-6266.27434345,0.00017255,2]
[394469176,1763613038715,-195.0,0.00017326,2]
[394469177,1763613038725,-9939.06330088,0.00017344,2]
[394469178,1763613038735,-1460.36,0.00017357,2]
[394469179,1763613038745,-657.62853522,0.00017358,2]
[394469180,1763613038754,-6266.27434345,0.00017363,2]
[394469181,1763613038764,-609.784,0.00017385,2]
[394469182,1763613038774,-171.68977967,0.00017399,2]
[394469183,1763613038783,-9939.06330088,0.00017456,2]
[394469184,1763613038793,-657.62853522,0.00017467,2]
[394469185,1763613038803,-6266.27434345,0.0001747,2]
[394469186,1763613038812,-842.95,0.000175,2]
[394469187,1763613038822,-400.0,0.000175,6]
[394469188,1763613038831,-500.0,0.00017521,2]
[394469189,1763613038841,-511.48237159,0.00017521,2]
[394469190,1763613038850,-1000.0,0.00017521,2]
[394469191,1763613038860,-159.65,0.00017552,2]
[394469192,1763613038870,-9939.06330088,0.00017567,2]
[394469193,1763613038879,-657.62853522,0.00017575,2]
[394469194,1763613038889,-6266.27434345,0.00017578,2]
[394469195,1763613038899,-822.0,0.00017595,2]
[394469196,1763613038908,-1600.0,0.00017595,2]
[394469197,1763613038918,-799.021,0.00017595,2]
[394469198,1763613038927,-1256.0,0.00017595,2]
[394469199,1763613038937,-1220.186,0.00017595,2]
[394469200,1763613038947,-925.769,0.00017595,2]
[394469201,1763613038956,-575.0,0.00017595,2]
[394469202,1763613038965,-708.819,0.00017595,2]
[394469203,1763613038975,-400.0,0.000176,6]
[394469204,1763613038985,-195.0,0.0001761,2]
[394469205,1763613038994,-1460.36,0.00017631,2]
[394469206,1763613039004,-9939.06330088,0.00017678,2]
[394469207,1763613039014,-500.0,0.00017681,2]
[394469208,1763613039024,-657.62853522,0.00017683,2]
[394469209,1763613039034,-6266.27434345,0.00017685,2]
[394469210,1763613039044,-400.0,0.000177,6]
[394469211,1763613039053,-630.01716056,0.00017754,2]
[394469212,1763613039063,-2244.0,0.00017754,2]
[394469213,1763613039072,-9939.06330088,0.00017789,2]
[394469214,1763613039081,-222.41932101,0.0001779,2]
[394469215,1763613039091,-657.62853522,0.00017792,2]
[394469216,1763613039100,-6266.27434345,0.00017793,2]
[394469217,1763613039111,-166.53672251,0.000178,2]
[394469218,1763613039120,-1011.0,0.000178,2]
[394469219,1763613039130,-400.0,0.000178,6]
[394469220,1763613039139,-166.66,0.00017805,2]
[394469221,1763613039148,-1813.80728,0.0001782,2]
[394469222,1763613039157,-200.0,0.00017855,2]
[394469223,1763613039167,-200.0,0.00017856,2]
[394469224,1763613039176,-500.0,0.00017873,2]
[394469225,1763613039186,-500.0,0.00017873,2]
[394469226,1763613039198,-160.73608923,0.00017873,2]
[394469227,1763613039208,-500.0,0.00017873,2]
[394469228,1763613039217,-501.20084487,0.00017873,2]
[394469229,1763613039227,-25000.0,0.00017874,3]
[394469230,1763613039236,-250.0,0.00017881,2]
[394469231,1763613039245,-300.0,0.00017881,2]
[394469232,1763613039255,-300.0,0.00017881,2]
[394469233,1763613039264,-2500.0,0.00017881,2]
[394469234,1763613039274,-25000.0,0.00017882,3]
[394469235,1763613039283,-1820.68505313,0.0001789,2]
[394469236,1763613039292,-25000.0,0.00017891,3]
[394469237,1763613039302,-25000.0,0.000179,3]
[394469238,1763613039312,-166.5367225,0.000179,2]
[394469239,1763613039321,-657.62853522,0.000179,2]
[394469240,1763613039330,-758.0,0.000179,6]
[394469241,1763613039339,-179.96414648,0.000179,3]
[394469242,1763613039348,-6266.27434345,0.000179,2]
[394469243,1763613039358,-9939.06330088,0.000179,2]
[394469244,1763613039368,-515.35190765,0.000179,2]
[394469245,1763613039377,-171.68977967,0.000179,2]
[394469246,1763613039386,-27793.82354216,0.000179,2]
[394469247,1763613039396,-500.37989577,0.000179,2]
[394469248,1763613039405,-10309.04130668,0.000179,2]
[394469249,1763613039415,-4785.0,0.000179,2]
[394469250,1763613039426,-1460.36,0.00017905,2]
[394469251,1763613039436,-500.0,0.00017972,2]
[394469252,1763613039446,-500.0,0.00017973,2]
[394469253,1763613039455,-161.60192736,0.00017973,2]
[394469254,1763613039465,-500.0,0.00017973,2]
[394469255,1763613039475,-316.17285237,0.00017973,2]
[394469256,1763613039484,-500.0,0.00017973,2]
[394469257,1763613039493,-500.0,0.00017973,2]
[394469258,1763613039503,-501.23748106,0.00017973,2]
[394469259,1763613039513,-500.0,0.00017973,2]
[394469260,1763613039522,-500.0,0.00017973,2]
[394469261,1763613039533,-500.0,0.00017973,2]
[394469262,1763613039544,-500.60626497,0.00017973,2]
[394469263,1763613039554,-181.63155506,0.00017973,2]
[394469264,1763613039563,-501.23436494,0.00017973,2]
[394469265,1763613039576,-500.62908268,0.00017973,2]
[394469266,1763613039585,-500.0,0.00017973,2]
[394469267,1763613039595,-297.20176291,0.00017973,2]
[394469268,1763613039605,-501.27362339,0.00017973,2]
[394469269,1763613039617,-500.0,0.00017973,2]
[394469270,1763613039627,-500.90554177,0.00017973,2]
[394469271,1763613039636,-230.17291841,0.00017973,2]
[394469272,1763613039647,-500.0,0.00017973,2]
[394469273,1763613039658,-500.60845142,0.00017973,2]
[394469274,1763613039667,-572.12173873,0.00017973,2]
[394469275,1763613039676,-500.0,0.00017973,2]
[394469276,1763613039686,-500.0,0.00017973,2]
[394469277,1763613039696,-503.86976296,0.00017973,2]
[394469278,1763613039706,-500.0,0.00017973,2]
[394469279,1763613039715,-500.0,0.00017973,2]
[394469280,1763613039725,-500.0,0.00017973,2]
[394469281,1763613039734,-500.0,0.00017973,2]
[394469282,1763613039744,-500.0,0.00017973,2]
[394469283,1763613039753,-500.0,0.00017973,2]
[394469284,1763613039763,-500.0,0.00017973,2]
[394469285,1763613039772,-500.0,0.00017973,2]
[394469286,1763613039781,-1820.68505313,0.0001799,2]
[394469287,1763613039790,-1820.68505313,0.0001799,2]
[394469288,1763613039800,-61627.7631924,0.00017996,2]
[394469289,1763613039809,-2100.9244372,0.00017996,2]
[394469290,1763613039818,-7670.2349866,0.00017996,2]
[394469291,1763613039827,-935.0,0.00017998,2]
[394469292,1763613039836,-500.0,0.00017999,2]
[394469293,1763613039846,-500.0,0.00017999,2]
[394469294,1763613039855,-630.79318049,0.00017999,2]
[394469295,1763613039864,-811.7,0.00017999,2]
[394469296,1763613039874,-811.7,0.00017999,2]
[394469297,1763613039883,-811.7,0.00017999,2]
[394469298,1763613039893,-811.7,0.00017999,2]
[394469299,1763613039902,-811.7,0.00017999,2]
[394469300,1763613039912,-811.7,0.00017999,2]
[394469301,1763613039922,-811.7,0.00017999,2]
[394469302,1763613039931,-811.7,0.00017999,2]
[394469303,1763613039940,-811.7,0.00017999,2]
[394469304,1763613039949,-811.7,0.00017999,2]
[394469305,1763613039962,-811.7,0.00017999,2]
[394469306,1763613039972,-811.7,0.00017999,2]
[394469308,1763613039982,-811.7,0.00017999,2]
[394469309,1763613039991,-811.7,0.00017999,2]
[394469310,1763613040002,-811.7,0.00017999,2]
[394469311,1763613040011,-811.7,0.00017999,2]
[394469312,1763613040020,-811.7,0.00017999,2]
[394469313,1763613040030,-811.7,0.00017999,2]
[394469314,1763613040039,-811.7,0.00017999,2]
[394469315,1763613040049,-811.7,0.00017999,2]
[394469316,1763613040059,-811.91299022,0.00017999,2]
[394469317,1763613040068,-300.0,0.00017999,2]
[394469318,1763613040079,-315.08513889,0.00017999,2]
[394469319,1763613040088,-300.0,0.00017999,2]
[394469320,1763613040098,-500.0,0.00017999,2]
[394469321,1763613040108,-500.0,0.00017999,2]
[394469322,1763613040118,-639.05819945,0.00017999,2]
[394469323,1763613040127,-1096914.19961853,0.00018,2]
[394469324,1763613040136,-150.0,0.00018,2]
[394469325,1763613040145,-596.25347022,0.00018,2]
[394469326,1763613040154,-102547.49444512,0.00018,2]
[394469327,1763613040164,-151.0,0.00018,2]
[394469328,1763613040173,-2066189.32929148,0.00018,2]
[394469329,1763613040189,-909.27102,0.00018,2]
[394469330,1763613040504,-1126.97752825,0.00017385,2]
[394469331,1763613040516,-501.33147113,0.00017385,2]
[394469338,1763613043481,-250.65711256,0.00017233,2]
[394469339,1763613043491,-1805.69100062,0.00017385,2]
[394469340,1763613043501,-887891.18090756,0.00018,2]
[394469351,1763613073673,200.0,0.00042066,30]
[394469354,1763613123254,500.0,0.00042066,120]
[394469355,1763613123501,285.51871829,0.00042066,120]
[394469368,1763613242143,595.15,8.469e-05,2]
[394469369,1763613242347,595.15,8.915e-05,2]
[394469371,1763613242678,437.0580736,9.36e-05,2]
[394469372,1763613242708,158.0919264,9.36e-05,2]
[394469373,1763613242756,595.15,9.806e-05,2]
[394469374,1763613242951,595.15,0.00010252,2]
[394469375,1763613243162,595.15,0.00010698,2]
[394469376,1763613243374,595.15,0.00011143,2]
[394469377,1763613243577,595.15,0.00011589,2]
[394469378,1763613243780,595.15,0.00012035,2]
[394469379,1763613243985,595.15,0.0001248,2]
[394469380,1763613244198,595.15,0.00012926,2]
[394469381,1763613244404,595.15,0.00013372,2]
[394469382,1763613244666,595.15,0.00013818,2]
[394469383,1763613244889,595.15,0.00014263,2]
[394469384,1763613245111,595.15,0.00014709,2]
[394469385,1763613245326,595.15,0.00015155,2]
[394469386,1763613245555,595.15,0.00015601,2]
[394469387,1763613249327,-595.15,0.00016046,2]
[394469397,1763613465369,383.13,0.00024699,120]
[394469398,1763613851591,201.1075198,0.00032,120]
[394469407,1763614013519,524.80514218,0.00042068,120]
[394469408,1763614020982,518.04930862,0.00042068,120]
[394469409,1763614027722,500.0,0.00042068,120]
[394469410,1763614028163,500.0,0.00042068,120]
[394469411,1763614032070,200.0,0.000169,6]
[394469412,1763614032374,500.0,0.00042068,120]
[394469413,1763614032616,528.22393387,0.00042068,120]
[394469414,1763614034160,500.0,0.000172,6]
[394469415,1763614036242,800.0,0.000173,6]
[394469416,1763614037523,487.51152955,0.00042068,120]
[394469417,1763614038572,1100.0,0.000174,6]
[394469418,1763614039338,500.0,0.00042068,120]
[394469419,1763614039603,555.6349414,0.00042068,120]
[394469420,1763614042851,500.0,0.00042068,120]
[394469421,1763614043092,500.0,0.00042068,120]
[394469422,1763614043342,500.0,0.00042068,120]
[394469423,1763614046585,500.0,0.00042068,120]
[394469424,1763614046826,500.0,0.00042068,120]
[394469425,1763614047069,500.0,0.00042068,120]
[394469426,1763614049562,500.0,0.00042068,120]
[394469427,1763614050049,580.5083892,0.00042068,120]
[394469428,1763614057292,200.0,0.00015991,2]
[394469429,1763614058674,500.0,0.00042068,120]
[394469430,1763614059051,500.0,0.00042068,120]
[394469431,1763614059146,500.0,0.00042068,120]
[394469432,1763614064683,500.0,0.00042068,120]
[394469433,1763614064937,500.0,0.00042068,120]
[394469434,1763614065205,500.0,0.00042068,120]
[394469435,1763614065443,500.0,0.00042068,120]
[394469437,1763614067354,528.60150742,0.00042068,120]
[394469439,1763614075513,500.0,0.00042068,120]
[394469440,1763614075752,500.0,0.00042068,120]
[394469441,1763614075997,518.10772932,0.00042068,120]
[394469442,1763614076498,500.0,0.00042068,120]
[394469443,1763614076744,500.0,0.00042068,120]
[394469444,1763614076988,500.0,0.00042068,120]
[394469445,1763614081239,500.0,0.00042068,120]
[394469446,1763614081461,500.0,0.00042068,120]
[394469447,1763614081732,605.63018141,0.00042068,120]
[394469449,1763614089643,480.38176775,0.00042068,120]
[394469450,1763614091831,517.89930227,0.00042068,120]
[394469451,1763614094014,500.0,0.00042068,120]
[394469452,1763614094195,500.0,0.00042068,120]
[394469453,1763614094276,500.0,0.00042068,120]
[394469454,1763614094424,500.0,0.00042068,120]
[394469455,1763614094511,588.09646375,0.00042068,120]
[394469456,1763614094667,500.0,0.00042068,120]
[394469457,1763614094925,500.0,0.00042068,120]
[394469458,1763614095160,526.94954609,0.00042068,120]
[394469459,1763614096401,500.0,0.00042068,120]
[394469460,1763614096649,500.0,0.00042068,120]
[394469461,1763614096925,500.0,0.00042068,120]
[394469462,1763614099812,500.0,0.00042068,120]
[394469463,1763614100300,500.0,0.00042068,120]
[394469464,1763614100371,500.0,0.00042068,120]
[394469465,1763614100614,500.0,0.00042068,120]
[394469466,1763614100863,500.0,0.00042068,120]
[394469467,1763614102704,500.0,0.00042068,120]
[394469468,1763614103019,500.0,0.00042068,120]
[394469469,1763614103264,500.0,0.00042068,120]
[394469470,1763614103495,575.93350316,0.00042068,120]
[394469471,1763614105346,500.0,0.00042068,120]
[394469472,1763614105599,500.0,0.00042068,120]
[394469473,1763614105971,500.0,0.00042068,120]
[394469474,1763614106216,150.78,0.00042068,120]
[394469475,1763614108859,177.02,0.00016823,3]
[394469476,1763614112529,500.0,0.00042068,120]
[394469477,1763614112793,500.0,0.00042068,120]
[394469478,1763614113091,569.54955333,0.00042068,120]
[394469481,1763614131152,500.0,0.00042068,120]
[394469482,1763614131409,500.0,0.00042068,120]
[394469483,1763614131664,577.75288198,0.00042068,120]
[394469484,1763614132676,500.0,0.00042068,120]
[394469485,1763614133009,500.0,0.00042068,120]
[394469486,1763614133269,500.0,0.00042068,120]
[394469487,1763614133375,500.0,0.00042068,120]
[394469488,1763614138959,515.6033932,0.00042068,120]
[394469489,1763614145885,500.0,0.00042068,120]